fUST/lending_fUST_20240920
["ID","MTS","AMOUNT","RATE_DAILY","PERIOD"]
[338603855,1726764338167,-24900.0,0.00017241,2]
[338603856,1726764338190,-177.2542991,0.00017424,2]
[338603857,1726764338211,-150.0,0.00017768,2]
[338603858,1726764338233,-524.0,0.00017768,2]
[338603859,1726764338254,-500.0,0.00017808,2]
[338603860,1726764338279,-214.0,0.0001815,7]
[338603861,1726764338304,-428.478,0.000185,2]
[338603862,1726764338326,-153.0,0.00018564,2]
[338603863,1726764338347,-193.9092329,0.00018564,2]
[338603864,1726764338368,-415.0948282,0.00018567,2]
[338603865,1726764338389,-4419.52062027,0.000186,2]
[338603866,1726764338410,-637.14254103,0.00018687,2]
[338603867,1726764338431,-1000.0,0.00018696,2]
[338603868,1726764338452,-822.8123903,0.000187,2]
[338603869,1726764338473,-1000.0,0.00018762,2]
[338603870,1726764338493,-1000.0,0.00018764,2]
[338603871,1726764338516,-420.0,0.00018825,2]
[338603872,1726764338539,-1000.0,0.00018848,2]
[338603873,1726764338562,-3388.43661256,0.00018898,2]
[338603874,1726764338586,-1000.0,0.00018925,2]
[338603875,1726764338608,-1000.0,0.00018964,2]
[338603876,1726764338630,-420.0,0.00018964,2]
[338603877,1726764338651,-687.51,0.00019,2]
[338603878,1726764338672,-1000.0,0.00019001,2]
[338603879,1726764338692,-1454.81703093,0.00019078,2]
[338603880,1726764338713,-208.0,0.0001908,2]
[338603881,1726764338733,-150.0,0.000191,2]
[338603882,1726764338754,-1000.0,0.00019102,2]
[338603883,1726764338774,-155.02572845,0.00019121,2]
[338603884,1726764338797,-35949.93712913,0.0001913,5]
[338603885,1726764338818,-18108.83882663,0.0001913,3]
[338603886,1726764339112,-24167.94849317,0.0001913,3]
[338603887,1726764339138,-9128.03893713,0.0001913,3]
[338603888,1726764339162,-220.94085053,0.00019137,2]
[338603889,1726764339185,-500.0,0.00019137,2]
[338603890,1726764339209,-84553.5746396,0.00019138,3]
[338603891,1726764339248,-18256.0778743,0.00019138,3]
[338603892,1726764339274,-42276.7873198,0.0001914,3]
[338603893,1726764339299,-9128.03893713,0.0001914,3]
[338603894,1726764339325,-2682.23074217,0.00019148,3]
[338603895,1726764379263,1570.887,0.00022,60]
[338603898,1726764450135,-1216.0,0.00017768,2]
[338603899,1726764450157,-7618.47112057,0.00019099,2]
[338603900,1726764450181,-300.0,0.00019099,2]
[338603901,1726764450203,-300.0,0.00019099,2]
[338603902,1726764450223,-618.76,0.000191,2]
[338603903,1726764450244,-150.0,0.000191,2]
[338603904,1726764450266,-8431.08244443,0.00019148,3]
[338604056,1726764638294,-150.0,0.00017768,2]
[338604057,1726764638304,-150.0,0.00017768,2]
[338604058,1726764638314,-3893.77,0.00019,2]
[338604059,1726764638323,-300.0,0.00019147,2]
[338604060,1726764638332,-17974.96856457,0.00019148,5]
[338604061,1726764638341,-33265.7641965,0.00019148,3]
[338604063,1726764638352,-62769.1969611,0.00019148,3]
[338604064,1726764638363,-239.0025318,0.00019149,2]
[338604065,1726764638374,-37975.72791244,0.0001915,2]
[338604066,1726764638493,-3632.27550884,0.0001915,2]
[338604067,1726764638504,-246.0,0.0001915,2]
[338604068,1726764638515,-6878.59352624,0.0001916,2]
[338604069,1726764638527,-151.0,0.00019168,2]
[338604070,1726764638537,-10304.75738646,0.00019168,3]
[338604110,1726764640213,-16705.41227523,0.00019168,3]
[338604112,1726764640234,-828.12622737,0.00019168,3]
[338604170,1726764643221,-150.0,0.00017768,2]
[338604171,1726764643231,-9722.3272191,0.00019168,3]
[338604174,1726764643522,-28970.90528484,0.00019168,3]
[338604175,1726764643534,-9757.57760566,0.00019168,3]
[338604219,1726764646254,-2070.479285,0.00019168,3]
[338604253,1726765643153,-2736.9897877,0.00017408,2]
[338604254,1726765643173,-300.0,0.00017664,2]
[338604255,1726765643194,-300.0,0.00017664,2]
[338604256,1726765643215,-24900.0,0.00017665,2]
[338604257,1726765643247,-219.552214,0.00017731,2]
[338604258,1726765643271,-150.0,0.0001777,2]
[338604259,1726765643293,-524.0,0.0001777,2]
[338604260,1726765643314,-1216.0,0.0001777,2]
[338604261,1726765643335,-500.0,0.00017808,2]
[338604262,1726765643357,-250.0,0.0001783,2]
[338604263,1726765643377,-500.0,0.00018145,2]
[338604264,1726765643398,-674.223443,0.00018287,2]
[338604319,1726765832285,-177.254298,0.00017901,2]
[338604321,1726765832295,-649.90497604,0.00018387,2]
[338604323,1726765832304,-628.56058696,0.00018552,2]
[338604355,1726765838487,-616.62854545,0.00018552,2]
[338604369,1726765841551,-354.5028304,0.00018652,2]
[338604370,1726765841561,-174.890977,0.00018745,2]
[338604371,1726765841573,-6379.70479107,0.00018751,2]
[338604372,1726765841584,-300.0,0.00018774,2]
[338604373,1726765841594,-300.0,0.00018775,2]
[338604374,1726765841604,-1827.9669034,0.00018776,2]
[338604375,1726765841614,-276.63789732,0.000189,2]
[338604376,1726765841627,-276.63789732,0.000189,2]
[338604377,1726765841640,-276.63789732,0.000189,2]
[338604378,1726765841651,-1827.9669034,0.00019,2]
[338604379,1726765841661,-1383.92,0.00019,2]
[338604380,1726765841672,-5230.42864192,0.00019021,2]
[338604381,1726765841683,-179.54118941,0.0001905,2]
[338604382,1726765841694,-412.716,0.00019078,2]
[338604383,1726765841705,-179.54118937,0.00019088,2]
[338604384,1726765841716,-3000.0,0.000191,2]
[338604385,1726765841726,-556.88,0.000191,2]
[338604386,1726765841736,-153.0,0.000191,2]
[338604387,1726765841747,-150.0,0.000191,2]
[338604388,1726765841757,-40000.0,0.000191,2]
[338604389,1726765841768,-1309.33532781,0.00019112,2]
[338604390,1726765841777,-154.99434249,0.00019121,2]
[338604391,1726765841787,-179.54118937,0.00019126,2]
[338604392,1726765841797,-1000.0,0.00019133,2]
[338604393,1726765841806,-37846.16386243,0.00019148,5]
[338604394,1726765841817,-33249.6392517,0.00019148,3]
[338604395,1726765841828,-62731.6399721,0.00019148,3]
[338604396,1726765841839,-305.0,0.0001915,2]
[338604397,1726765841850,-179.54118937,0.00019163,2]
[338604398,1726765841862,-297.57547545,0.00019167,2]
[338604399,1726765841871,-500.0,0.00019167,2]
[338604400,1726765841881,-500.0,0.00019167,2]
[338604401,1726765841892,-167.56262647,0.00019167,2]
[338604402,1726765841903,-500.0,0.00019167,2]
[338604403,1726765841913,-500.0,0.00019167,2]
[338604404,1726765841923,-500.0,0.00019167,2]
[338604405,1726765841932,-500.0,0.00019167,2]
[338604406,1726765841942,-500.0,0.00019167,2]
[338604407,1726765841952,-500.0,0.00019167,2]
[338604408,1726765841963,-500.0,0.00019167,2]
[338604409,1726765841973,-500.0,0.00019167,2]
[338604410,1726765841983,-500.0,0.00019167,2]
[338604411,1726765841994,-500.0,0.00019167,2]
[338604412,1726765842003,-500.0,0.00019167,2]
[338604413,1726765842013,-460.9495178,0.00019167,2]
[338604414,1726765842023,-500.0,0.00019167,2]
[338604415,1726765842032,-500.0,0.00019167,2]
[338604416,1726765842041,-500.0,0.00019167,2]
[338604417,1726765842051,-500.0,0.00019167,2]
[338604418,1726765842061,-500.0,0.00019167,2]
[338604419,1726765842071,-500.0,0.00019167,2]
[338604420,1726765842081,-500.0,0.00019167,2]
[338604421,1726765842092,-150.01,0.00019167,2]
[338604422,1726765842103,-325.07669805,0.00019167,2]
[338604423,1726765842113,-24736.14976005,0.00019167,5]
[338604424,1726765842127,-9231.30036677,0.00019167,5]
[338604425,1726765842137,-33249.6392517,0.00019168,3]
[338604426,1726765842147,-4429.32587791,0.00019168,3]
[338604427,1726765842266,-3585.64060497,0.00019168,3]
[338604466,1726765846365,-190.31030363,0.00019167,2]
[338604467,1726765846374,-260.06135844,0.00019167,2]
[338604468,1726765846384,-54716.67348922,0.00019168,3]
[338604469,1726765846394,-251.56001034,0.00019168,3]
[338604470,1726765846403,-151.0,0.00019168,2]
[338604471,1726765846412,-151.0,0.00019168,2]
[338604472,1726765846421,-33249.6392517,0.00019168,3]
[338604473,1726765846430,-62731.6399721,0.00019168,3]
[338604474,1726765846439,-533.89,0.00019178,2]
[338604475,1726765846448,-2000.0,0.00019178,2]
[338604476,1726765846457,-2000.0,0.00019178,2]
[338604477,1726765846468,-1399.76725942,0.00019178,2]
[338604526,1726766908707,824.30143065,0.00012,7]
[338604537,1726766956360,-171.741517,0.00016178,2]
[338604538,1726766956384,-219.5522144,0.00016391,2]
[338604539,1726766956410,-3000.0,0.00016475,2]
[338604540,1726766956432,-300.0,0.00016902,2]
[338604541,1726766956458,-300.0,0.00016902,2]
[338604542,1726766956480,-24900.0,0.00016903,2]
[338604616,1726767038557,-4935.7053272,0.00017716,2]
[338604618,1726767038566,-500.0,0.00017808,2]
[338604619,1726767038576,-300.0,0.00018043,2]
[338604620,1726767038585,-300.0,0.00018043,2]
[338604621,1726767038595,-480.28054895,0.00018044,2]
[338604638,1726767040454,-77.19445105,0.00018044,2]
[338604640,1726767040463,-150.0,0.00018044,2]
[338604642,1726767040472,-500.0,0.00018145,2]
[338604644,1726767040482,-153.0,0.00018502,2]
[338604646,1726767040492,-500.0,0.00018645,2]
[338604648,1726767040501,-174.890973,0.00018745,2]
[338604650,1726767040510,-186.164429,0.00018745,2]
[338604652,1726767040521,-174.890973,0.00018745,2]
[338604654,1726767040532,-174.890977,0.00018745,2]
[338604655,1726767040541,-151.0,0.00018783,2]
[338604656,1726767040550,-3160.02941471,0.00018783,2]
[338604657,1726767040560,-951.83350902,0.00018861,2]
[338604658,1726767040572,-3173.4,0.00018861,2]
[338604659,1726767040583,-2254.47128205,0.00018861,2]
[338604660,1726767040594,-150.0,0.00018935,2]
[338604661,1726767040603,-386.12,0.00018958,2]
[338604662,1726767040613,-2915.53,0.00019,2]
[338604663,1726767040623,-5230.42864192,0.00019021,2]
[338604664,1726767040632,-151.0,0.00019026,2]
[338604665,1726767040643,-6379.70479107,0.00019026,2]
[338604666,1726767040652,-1000.0,0.00019028,2]
[338604667,1726767040662,-1000.0,0.00019048,2]
[338604668,1726767040671,-179.54118941,0.00019052,2]
[338604669,1726767040680,-179.54118937,0.00019059,2]
[338604670,1726767040690,-179.54118937,0.00019065,2]
[338604671,1726767040700,-179.54118937,0.00019072,2]
[338604672,1726767040709,-1309.33532781,0.00019072,2]
[338604673,1726767040718,-179.54118937,0.00019078,2]
[338604674,1726767040727,-150.0,0.000191,2]
[338604675,1726767040737,-628.75,0.000191,2]
[338604676,1726767040746,-209.0,0.0001911,2]
[338604677,1726767040755,-154.96609513,0.00019121,2]
[338604678,1726767040766,-29924.6753266,0.00019138,3]
[338604679,1726767040775,-5788.89622276,0.00019138,3]
[338604680,1726767040785,-37846.16386243,0.00019138,5]
[338604681,1726767040794,-29924.6753266,0.00019138,3]
[338604682,1726767040804,-5788.89622276,0.00019138,3]
[338604683,1726767040814,-29924.6753266,0.00019142,3]
[338604684,1726767040823,-5788.89622276,0.00019142,3]
[338604685,1726767040832,-500.0,0.00019147,2]
[338604686,1726767040842,-500.0,0.00019147,2]
[338604687,1726767040851,-500.0,0.00019147,2]
[338604688,1726767040860,-167.56262647,0.00019147,2]
[338604689,1726767040870,-500.0,0.00019147,2]
[338604690,1726767040879,-500.0,0.00019147,2]
[338604691,1726767040889,-500.0,0.00019147,2]
[338604692,1726767040898,-500.0,0.00019147,2]
[338604693,1726767040908,-500.0,0.00019147,2]
[338604694,1726767040918,-500.0,0.00019147,2]
[338604695,1726767040928,-500.0,0.00019147,2]
[338604696,1726767040937,-500.0,0.00019147,2]
[338604697,1726767040948,-500.0,0.00019147,2]
[338604698,1726767040958,-500.0,0.00019147,2]
[338604699,1726767040967,-500.0,0.00019147,2]
[338604700,1726767040977,-500.0,0.00019147,2]
[338604701,1726767040986,-500.0,0.00019147,2]
[338604702,1726767040996,-500.0,0.00019147,2]
[338604703,1726767041005,-500.0,0.00019147,2]
[338604704,1726767041014,-500.0,0.00019147,2]
[338604705,1726767041024,-500.0,0.00019147,2]
[338604706,1726767041033,-474.43047652,0.00019147,2]
[338604707,1726767041044,-500.0,0.00019147,2]
[338604708,1726767041052,-500.0,0.00019147,2]
[338604709,1726767041062,-297.57547545,0.00019147,2]
[338604710,1726767041071,-59849.3506531,0.00019148,3]
[338604711,1726767041081,-11577.7924455,0.00019148,3]
[338604712,1726767041090,-59849.3506531,0.00019158,3]
[338604713,1726767041099,-11577.7924455,0.00019158,3]
[338604714,1726767041109,-151.0,0.00019158,2]
[338604715,1726767041118,-29924.6753266,0.00019158,3]
[338604716,1726767041127,-5788.89622276,0.00019158,3]
[338604717,1726767041138,-5788.89622276,0.00019161,3]
[338604718,1726767041148,-151.0,0.00019161,2]
[338604719,1726767041159,-5788.89622276,0.00019162,3]
[338604720,1726767041170,-13945.88220489,0.00019162,2]
[338604754,1726767046538,-1216.0,0.00018044,2]
[338604755,1726767046549,-3014.20684705,0.00019162,2]
[338604756,1726767046561,-18304.6876663,0.00019162,2]
[338604757,1726767046571,-5788.89622276,0.00019162,3]
[338604758,1726767046580,-5788.89622276,0.00019162,3]
[338604759,1726767046591,-29351.79994343,0.00019168,5]
[338604760,1726767046601,-151.0,0.00019168,2]
[338604761,1726767046612,-1240.313304,0.00019168,2]
[338604762,1726767046622,-1240.313304,0.00019168,2]
[338604763,1726767046632,-151.0,0.00019168,2]
[338604764,1726767046642,-151.0,0.00019168,2]
[338604765,1726767046651,-1905.32362,0.00019168,2]
[338604766,1726767046661,-1905.32362,0.00019168,2]
[338604767,1726767046670,-151.0,0.00019168,2]
[338604768,1726767046679,-194.3403,0.00019168,2]
[338604769,1726767046689,-151.0,0.00019168,2]
[338604770,1726767046698,-1944.351772,0.00019168,2]
[338604771,1726767046707,-538.193766,0.00019168,2]
[338604772,1726767046717,-538.193766,0.00019168,2]
[338604774,1726767046726,-1944.351772,0.00019168,2]
[338604776,1726767046736,-231.848878,0.00019168,2]
[338604778,1726767046745,-151.0,0.00019168,2]
[338604780,1726767046755,-151.0,0.00019168,2]
[338604781,1726767046764,-151.0,0.00019168,2]
[338604783,1726767046776,-151.0,0.00019168,2]
[338604785,1726767046786,-3564.646081,0.00019168,2]
[338604787,1726767046796,-151.0,0.00019168,2]
[338604789,1726767046805,-3564.646081,0.00019168,2]
[338604791,1726767046815,-778.113785,0.00019168,2]
[338604793,1726767046825,-778.113785,0.00019168,2]
[338604794,1726767046835,-582.76373,0.00019168,2]
[338604796,1726767046845,-582.76373,0.00019168,2]
[338604798,1726767046854,-805.003565,0.00019168,2]
[338604800,1726767046863,-151.0,0.00019168,2]
[338604801,1726767046873,-805.003565,0.00019168,2]
[338604802,1726767046883,-151.0,0.00019168,2]
[338604803,1726767046892,-2520.025275,0.00019168,2]
[338604804,1726767047042,-151.0,0.00019168,2]
[338604805,1726767047061,-151.0,0.00019168,2]
[338604806,1726767047071,-151.0,0.00019168,2]
[338604807,1726767047081,-2520.025275,0.00019168,2]
[338604808,1726767047091,-3979.379998,0.00019168,2]
[338604809,1726767047100,-3979.379998,0.00019168,2]
[338604810,1726767047110,-151.0,0.00019168,2]
[338604811,1726767047119,-1073.826146,0.00019168,2]
[338604812,1726767047129,-5788.89622276,0.00019168,3]
[338604813,1726767047139,-1944.351772,0.00019171,2]
[338604814,1726767047148,-1944.351772,0.00019171,2]
[338604815,1726767047158,-151.0,0.00019171,2]
[338604816,1726767047168,-151.0,0.00019171,2]
[338604817,1726767047177,-3564.646081,0.00019171,2]
[338604818,1726767047187,-151.0,0.00019171,2]
[338604819,1726767047196,-151.0,0.00019171,2]
[338604820,1726767047206,-3564.646081,0.00019171,2]
[338604821,1726767047216,-778.113785,0.00019171,2]
[338604822,1726767047226,-778.113785,0.00019171,2]
[338604823,1726767047235,-582.76373,0.00019171,2]
[338604824,1726767047245,-582.76373,0.00019171,2]
[338604825,1726767047254,-805.003565,0.00019171,2]
[338604826,1726767047263,-151.0,0.00019171,2]
[338604827,1726767047275,-805.003565,0.00019171,2]
[338604828,1726767047285,-2520.025275,0.00019171,2]
[338604829,1726767047294,-2520.025275,0.00019171,2]
[338604830,1726767047304,-3979.379998,0.00019171,2]
[338604831,1726767047314,-3979.379998,0.00019171,2]
[338604832,1726767047323,-5788.89622276,0.00019172,3]
[338604833,1726767047333,-151.0,0.00019172,2]
[338604834,1726767047343,-1240.313304,0.00019172,2]
[338604835,1726767047353,-1240.313304,0.00019172,2]
[338604836,1726767047362,-151.0,0.00019172,2]
[338604837,1726767047372,-151.0,0.00019172,2]
[338604838,1726767047382,-1905.32362,0.00019172,2]
[338604839,1726767047391,-1905.32362,0.00019172,2]
[338604840,1726767047401,-151.0,0.00019172,2]
[338604841,1726767047410,-151.0,0.00019172,2]
[338604842,1726767047420,-538.193766,0.00019172,2]
[338604843,1726767047430,-1944.351772,0.00019172,2]
[338604844,1726767047439,-1944.351772,0.00019172,2]
[338604845,1726767047449,-3.78819194,0.00019172,2]
[338604895,1726768153163,-300.0,0.00017036,2]
[338604896,1726768153185,-300.0,0.00017036,2]
[338604897,1726768153208,-23523.48205396,0.00017037,2]
[338604898,1726768158213,-1341.3848,0.00017037,2]
[338604899,1726768166108,-35.13314604,0.00017037,2]
[338604921,1726768232796,-2276.530074,0.00017386,2]
[338604922,1726768232806,-229.7966479,0.00017576,2]
[338604923,1726768232816,-500.0,0.00017808,2]
[338604924,1726768232825,-151.0,0.00018048,2]
[338604925,1726768232835,-300.0,0.00018177,2]
[338604926,1726768232844,-300.0,0.00018177,2]
[338604927,1726768232854,-500.0,0.00018178,7]
[338604928,1726768232863,-500.0,0.00018178,7]
[338604929,1726768232873,-500.0,0.00018178,7]
[338604930,1726768232882,-500.0,0.00018178,7]
[338604931,1726768232892,-500.0,0.00018178,7]
[338604932,1726768232901,-500.0,0.00018178,7]
[338604933,1726768232911,-500.0,0.00018178,7]
[338604934,1726768232924,-500.0,0.00018178,7]
[338604935,1726768232933,-474.96,0.00018178,7]
[338604936,1726768232943,-500.0,0.00018178,7]
[338604937,1726768232952,-500.0,0.00018178,7]
[338604938,1726768232962,-426.75,0.00018178,7]
[338604939,1726768232971,-500.0,0.00018178,7]
[338604940,1726768232981,-500.0,0.00018178,7]
[338604941,1726768232991,-150.0,0.00018263,2]
[338604942,1726768233001,-524.0,0.00018263,2]
[338604943,1726768233011,-1216.0,0.00018263,2]
[338604944,1726768233020,-153.0,0.00018278,2]
[338604945,1726768233030,-151.0,0.00018292,2]
[338604946,1726768233040,-621.49533561,0.00018342,2]
[338604947,1726768233050,-206.5946825,0.00018378,2]
[338604948,1726768233060,-153.0,0.00018378,2]
[338604949,1726768233069,-153.0,0.00018478,2]
[338604950,1726768233080,-208.7923626,0.00018478,2]
[338604951,1726768233090,-208.7923626,0.00018478,2]
[338604952,1726768233099,-151.0,0.00018536,2]
[338604953,1726768233109,-150.0,0.00018699,2]
[338604954,1726768233119,-308.8108868,0.000187,2]
[338604955,1726768233128,-3885.89834359,0.00018759,2]
[338604956,1726768233141,-3252.14007168,0.00018759,2]
[338604957,1726768233150,-151.0,0.0001878,2]
[338604958,1726768233160,-153.0,0.000188,2]
[338604959,1726768233173,-1000.0,0.00019,19]
[338604960,1726768233189,-436.196,0.00019021,2]
[338604961,1726768233199,-151.0,0.00019024,2]
[338604962,1726768233208,-259.94068136,0.00019037,2]
[338604963,1726768233220,-1000.0,0.00019047,2]
[338604964,1726768233231,-259.94068134,0.00019053,2]
[338604965,1726768233240,-1000.0,0.00019057,2]
[338604966,1726768233250,-259.94068134,0.00019069,2]
[338604967,1726768233260,-1309.33532781,0.00019078,2]
[338604968,1726768233270,-433.25,0.00019078,2]
[338604969,1726768233280,-259.94068134,0.00019085,2]
[338604970,1726768233290,-10313.96405706,0.00019091,3]
[338604974,1726768238855,-5372.2888644,0.00018145,2]
[338604975,1726768238865,-1030.56422349,0.00018645,2]
[338604976,1726768238913,-4341.72464091,0.00018645,2]
[338604977,1726768238924,-19617.34939654,0.00019091,3]
[338604978,1726768238934,-3762.78254484,0.00019091,3]
[338604979,1726768238943,-58110.17160222,0.000191,5]
[338604980,1726768238952,-150.0,0.000191,2]
[338604981,1726768238961,-693.44,0.000191,2]
[338604982,1726768238970,-27034.41344655,0.000191,2]
[338604983,1726768238981,-2699.90063457,0.000191,2]
[338605006,1726768242557,-150.0,0.00018263,2]
[338605007,1726768242567,-10265.68591888,0.000191,2]
[338605008,1726768242576,-259.94068134,0.00019101,2]
[338605009,1726768242586,-209.0,0.0001912,2]
[338605010,1726768242596,-154.93956893,0.00019121,2]
[338605011,1726768242606,-297.57547545,0.00019136,2]
[338605012,1726768242615,-500.0,0.00019136,2]
[338605013,1726768242625,-500.0,0.00019136,2]
[338605014,1726768242634,-377.28048187,0.00019136,2]
[338605015,1726768242644,-500.0,0.00019136,2]
[338605016,1726768242653,-400.80636382,0.00019136,2]
[338605017,1726768242664,-500.0,0.00019136,2]
[338605018,1726768242675,-500.0,0.00019136,2]
[338605019,1726768242689,-500.0,0.00019136,2]
[338605020,1726768242698,-500.0,0.00019136,2]
[338605021,1726768242708,-500.0,0.00019136,2]
[338605022,1726768242717,-500.0,0.00019136,2]
[338605023,1726768242727,-500.0,0.00019136,2]
[338605024,1726768242736,-500.0,0.00019136,2]
[338605025,1726768242746,-500.0,0.00019136,2]
[338605026,1726768242755,-500.0,0.00019136,2]
[338605027,1726768242764,-500.0,0.00019136,2]
[338605028,1726768242775,-500.0,0.00019136,2]
[338605029,1726768242784,-500.0,0.00019136,2]
[338605030,1726768242794,-500.0,0.00019136,2]
[338605031,1726768242803,-500.0,0.00019136,2]
[338605032,1726768242813,-500.0,0.00019136,2]
[338605033,1726768242829,-500.0,0.00019136,2]
[338605034,1726768242843,-500.0,0.00019136,2]
[338605035,1726768242853,-500.0,0.00019136,2]
[338605036,1726768242863,-29931.3134536,0.00019137,3]
[338605038,1726768242873,-3762.78254484,0.00019137,3]
[338605039,1726768242884,-29931.3134536,0.00019137,3]
[338605040,1726768242894,-3762.78254484,0.00019137,3]
[338605041,1726768242903,-59862.6269071,0.00019138,3]
[338605042,1726768242913,-7525.56508968,0.00019138,3]
[338605043,1726768242927,-29931.3134536,0.0001914,3]
[338605044,1726768242937,-3762.78254484,0.0001914,3]
[338605045,1726768242947,-151.0,0.00019142,2]
[338605046,1726768242957,-29931.3134536,0.00019142,3]
[338605047,1726768242967,-3762.78254484,0.00019142,3]
[338605048,1726768242977,-5372.2888644,0.00019145,2]
[338605049,1726768242987,-151.0,0.00019148,2]
[338605050,1726768242996,-151.0,0.00019148,2]
[338605051,1726768243005,-205.3103,0.00019148,2]
[338605052,1726768243015,-205.3103,0.00019148,2]
[338605053,1726768243025,-622.491028,0.00019148,2]
[338605054,1726768243035,-622.491028,0.00019148,2]
[338605055,1726768243048,-151.0,0.00019148,2]
[338605056,1726768243058,-3183.503998,0.00019148,2]
[338605057,1726768243068,-3183.503998,0.00019148,2]
[338605058,1726768243079,-29931.3134536,0.00019148,3]
[338605059,1726768243089,-7525.56508968,0.00019148,3]
[338605060,1726768243098,-1524.258896,0.0001915,2]
[338605061,1726768243108,-1524.258896,0.0001915,2]
[338605063,1726768243118,-622.807069,0.0001915,2]
[338605065,1726768243127,-622.807069,0.0001915,2]
[338605066,1726768243137,-188.6,0.0001915,2]
[338605067,1726768243147,-151.0,0.0001915,2]
[338605068,1726768243157,-151.0,0.0001915,2]
[338605069,1726768243166,-151.0,0.0001915,2]
[338605070,1726768243177,-258.713938,0.0001915,2]
[338605071,1726768243187,-466.210984,0.0001915,2]
[338605072,1726768243197,-466.210984,0.0001915,2]
[338605073,1726768243207,-151.0,0.0001915,2]
[338605074,1726768243217,-1638.049396,0.0001915,2]
[338605075,1726768243226,-693.319727,0.0001915,2]
[338605076,1726768243235,-1638.049396,0.0001915,2]
[338605077,1726768243245,-693.319727,0.0001915,2]
[338605078,1726768243255,-151.0,0.0001915,2]
[338605079,1726768243266,-151.0,0.0001915,2]
[338605080,1726768243276,-151.0,0.0001915,2]
[338605082,1726768243286,-151.0,0.0001915,2]
[338605084,1726768243295,-644.002852,0.0001915,2]
[338605085,1726768243305,-1874.88385,0.0001915,2]
[338605087,1726768243316,-644.002852,0.0001915,2]
[338605088,1726768243325,-1874.88385,0.0001915,2]
[338605089,1726768243335,-205.3103,0.0001915,2]
[338605090,1726768243345,-205.3103,0.0001915,2]
[338605091,1726768243359,-622.491028,0.0001915,2]
[338605092,1726768243369,-622.491028,0.0001915,2]
[338605093,1726768243379,-3183.503998,0.0001915,2]
[338605095,1726768243389,-3183.503998,0.0001915,2]
[338605096,1726768243400,-945.5129,0.0001915,2]
[338605098,1726768243410,-945.5129,0.0001915,2]
[338605100,1726768243419,-7525.56508968,0.00019152,3]
[338605103,1726768243434,-1524.258896,0.00019152,2]
[338605104,1726768243443,-1524.258896,0.00019152,2]
[338605105,1726768243453,-622.807069,0.00019152,2]
[338605106,1726768243467,-622.807069,0.00019152,2]
[338605108,1726768243477,-151.0,0.00019152,2]
[338605110,1726768243487,-151.0,0.00019152,2]
[338605112,1726768243496,-151.0,0.00019152,2]
[338605113,1726768243506,-466.210984,0.00019152,2]
[338605114,1726768243516,-466.210984,0.00019152,2]
[338605115,1726768243525,-151.0,0.00019152,2]
[338605117,1726768243536,-1638.049396,0.00019152,2]
[338605119,1726768243545,-693.319727,0.00019152,2]
[338605121,1726768243555,-1638.049396,0.00019152,2]
[338605123,1726768243565,-693.319727,0.00019152,2]
[338605125,1726768243575,-151.0,0.00019152,2]
[338605126,1726768243584,-151.0,0.00019152,2]
[338605128,1726768243593,-151.0,0.00019152,2]
[338605130,1726768243603,-644.002852,0.00019152,2]
[338605132,1726768243613,-1874.88385,0.00019152,2]
[338605134,1726768243623,-644.002852,0.00019152,2]
[338605135,1726768243633,-1874.88385,0.00019152,2]
[338605137,1726768243644,-205.3103,0.00019152,2]
[338605139,1726768243654,-205.3103,0.00019152,2]
[338605141,1726768243666,-622.491028,0.00019152,2]
[338605143,1726768243677,-622.491028,0.00019152,2]
[338605145,1726768243687,-3183.503998,0.00019152,2]
[338605147,1726768243697,-3183.503998,0.00019152,2]